[Event "French-ch U12-U14 2024"]
[Site "Agen"]
[Date "2024.04.14"]
[Round "1.8"]
[White "Yin, Milo"]
[Black "Radji, Ethan"]
[Result "1-0"]
[ECO "C50"]
[WhiteElo "2001"]
[BlackElo "1622"]
[Annotator "TA"]
[PlyCount "121"]
[EventDate "2024.04.14"]
[EventType "swiss"]
[EventCountry "FRA"]
[SourceTitle "playchess.com"]
[Source "ChessBase"]
[SourceQuality "1"]
[TimeControl "5400+30"]

{[%evp 13,120,32,36,26,37,31,59,58,56,37,72,64,112,112,111,112,117,114,123,89,129,94,116,89,106,45,40,33,39,47,68,66,70,68,69,64,87,68,192,185,248,242,234,227,225,220,218,213,311,298,277,271,376,312,437,444,462,469,442,411,474,406,414,413,903,419,425,431,1939,1864,2219,1962,3241,2071,5606,5189,29966,29961,29976,29978,29978,29979,29977,29977,29982,29983,29984,29985,29985,29986,29987,29987,29987,29987,29988,29989,29989,29990,29992,29993,29995,29996,29996,29997,29997,29998,29998,29999,29999]} 1. e4 {[%emt 0:00:05]} e5 {[%emt 0:00:10]} 2. Nf3 {[%emt 0:00:06]} Nc6 {[%emt 0:00:10]} 3. d4 {[%emt 0:00:06]} exd4 {[%emt 0:00:10]} 4. Bc4 {[%emt 0:00:05]} Be7 {[%emt 0:01:25]} 5. Nxd4 {[%emt 0:00:20]} d6 {[%emt 0:01:06]} 6. O-O {[%emt 0:02:56]} Nf6 {[%emt 1:30:29]} 7. Nc3 {[%emt 0:00:35]} O-O {[%emt 0:00:00]} 8. a3 {[%emt 0:01:18]} Ne5 {[%emt 0:00:00]} 9. Ba2 {[%emt 0:02:37]} Kh8 {[%emt 0:00:00]} 10. f4 {[%emt 0:01:40] White is slightly better.} Ng6 {[%emt 0:00:00]} 11. h3 {[%emt 0:01:41]} c6 {[%emt 0:00:00]} 12. Be3 {[%emt 0:19:56]} Ne8 {[%emt 0:00:00]} (12... d5 $14) 13. Qd3 $16 {[%emt 0:10:48]} Nc7 {[%emt 0:00:00]} 14. Rad1 {[%emt 0:05:54]} Be6 {[%emt 0:00:00]} 15. Nxe6 {[%emt 0:13:04]} fxe6 {[%emt 0:00:00]} 16. Qe2 {[%emt 0:00:58]} Qd7 {[%emt 0:00:00]} 17. Qg4 {[%emt 0:11:20]} b6 {[%emt 0:00:00]} 18. b4 {[%emt 0:08:34]} Rad8 {[%emt 0:00:00]} 19. Bd4 {[%emt 0:03:11] White is much more active.} (19. Ne2 $16) 19... e5 $14 {[%emt 0:00:00]} 20. Qxd7 {[%emt 0:01:30]} Rxd7 {[%emt 0:00:00] [#]} 21. Bxe5 {[%emt 0:00:32]} Nxe5 {[%emt 0:00:00]} (21... Rdd8 22. Bd4) 22. fxe5 {[%emt 0:00:04] Hoping for Rxf8+.} Rxf1+ {[%emt 0:00:00]} 23. Kxf1 {[%emt 0:00:13]} Rd8 {[%emt 0:00:00]} 24. e6 {[%emt 0:03:12]} Rf8+ {[%emt 0:00:00]} 25. Ke2 {[%emt 0:00:40][%cal Oe4e5]} Bf6 {[%emt 0:00:00] [#] Loses the game.} ({Black should try} 25... g6 $14) 26. Rxd6 $1 $18 {[%emt 0:03:36]} Nxe6 {[%emt 0:00:00]} (26... Bxc3 {might work better.} 27. e7 Re8) 27. Rxe6 {[%emt 0:01:28]} (27. Rxc6 $2 Nd4+ 28. Kd2 Nxc6 $19) 27... Bxc3 {[%emt 0:00:00]} 28. Rxc6 {[%emt 0:00:09][%mdl 4096] Endgame. KRB-KRB} Be5 {[%emt 0:00:00]} 29. Re6 {[%emt 0:00:22]} Bb2 {[%emt 0:00:00]} 30. a4 {[%emt 0:01:06]} Bc3 {[%emt 0:00:00]} (30... g6 {was worth a try.} 31. Kd3 Rf2 32. Re8+ Kg7 33. Re7+ Kh6 34. Rxa7 Rxg2) 31. b5 {[%emt 0:00:43]} Bb4 {[%emt 0:00:00]} 32. Rc6 {[%emt 0:00:30]} h6 {[%emt 0:00:00]} 33. Rc7 {[%emt 0:00:35]} Bc5 {[%emt 0:00:00]} (33... Re8 {is a better defense.} 34. c3 (34. Rxa7 Rxe4+ 35. Kd3 Rf4 $18) 34... Bd6) 34. Rxa7 {[%emt 0:02:11]} Rf2+ {[%emt 0:00:00]} 35. Kd3 {[%emt 0:00:07]} Rxg2 {[%emt 0:00:00]} 36. Be6 {[%emt 0:02:32]} g6 {[%emt 0:00:00]} 37. Rc7 {[%emt 0:00:43][%cal Oc7c5] And now Rxc5! would win.} Rg3+ {[%emt 0:00:00]} 38. Kc4 {[%emt 0:00:35]} Rg2 {[%emt 0:00:00]} (38... Bf2 $142 39. Kd5 Rg5+ 40. Kd6 (40. e5 Bg3 $18) 40... Bg3+ 41. Kd7 Bh2) 39. Kb3 {[%emt 0:00:27]} (39. a5 $142) 39... Rg3+ {[%emt 0:00:00]} 40. c3 {[%emt 0:00:09]} Rg1 {[%emt 0:00:00] [#]} (40... Be3 $142 41. a5 bxa5) 41. Rxc5 $1 {[%emt 0:02:24]} bxc5 {[%emt 0:00:00] KR-KB} (41... Kg7 42. Rc7+) 42. Kc4 {[%emt 0:00:05][%cal Ob5b6] Threatens to win with b6!} Ra1 {[%emt 0:00:00]} 43. b6 {[%emt 0:00:33]} Rxa4+ {[%emt 0:00:00]} 44. Kxc5 {[%emt 0:00:03] b7 would kill now.} Rxe4 {[%emt 0:00:00]} 45. b7 {[%emt 0:00:11] White mates.} Re5+ {[%emt 0:00:00]} 46. Kb4 {[%emt 0:00:15]} Rxe6 {[%emt 0:00:00]} 47. b8=Q+ {[%emt 0:00:08] KQ-KR} (47. b8=B Rb6+ 48. Kc5 Rxb8 49. Kd5 Rb5+ 50. Ke6 Rf5 51. Kd7 Rc5 52. c4 Rxc4 53. Ke6 Rh4 54. Ke7 Rxh3 55. Kf6 Rg3 56. Ke6 h5 57. Kf6 h4 58. Ke6 h3 59. Kd6 h2 60. Ke5 h1=Q (60... h1=B {leads to mate.} 61. Kd4 g5 62. Kc4 g4 63. Kd4 Rf3 64. Ke4 g3 65. Kd5 g2 66. Ke6 g1=Q 67. Kd5 Rf4+ 68. Kd6 Qg6+ 69. Kd7 Rf7+ 70. Ke8 Qg8#) 61. Kd6 Rd3+ 62. Kc5 Qd5+ 63. Kb6 Rb3+ 64. Kc7 Rb7+ 65. Kc8 Qd7#) 47... Kg7 {[%emt 0:00:00]} 48. c4 {[%emt 0:00:31][%cal Bc3c4,Bc4c5][%mdl 32]} h5 {[%emt 0:00:08]} 49. c5 {[%emt 0:00:18]} Re1 {[%emt 0:00:47]} 50. Qc7+ {[%emt 0:00:13]} Kh6 {[%emt 0:00:10]} 51. Qf4+ {[%emt 0:00:26]} Kg7 {[%emt 0:00:13]} 52. Qd4+ {[%emt 0:00:12]} Kh7 {[%emt 0:00:23]} 53. c6 {[%emt 0:00:14]} Rc1 {[%emt 0:00:35]} 54. Qd7+ {[%emt 0:00:15]} Kg8 {[%emt 0:00:10]} 55. c7 {[%emt 0:00:44]} Rxc7 {[%emt 0:00:20]} 56. Qxc7 {[%emt 0:00:08]} Kh8 {[%emt 0:00:11]} 57. Kc5 {[%emt 0:00:07]} g5 {[%emt 0:00:20][%cal Bg6g5,Bg5g4,Bg4g3,Bg3g2][%mdl 32]} 58. Kd6 {[%emt 0:00:06]} g4 {[%emt 0:00:24]} 59. Ke6 {[%emt 0:00:12]} g3 {[%emt 0:00:09]} 60. Kf6 {[%emt 0:00:04][%csl Gf6][%cal Rc7g7]} g2 {[%emt 0:00:21]} 61. Qg7# {[%emt 0:00:37] Weighted Error Value: White=0.23 (precise) /Black=0.39.  Mistake:       	White=2     	Black=7      Inaccurate:     	---       	Black=4      OK:         	White=13    	Black=8      Best:        	---       	Black=1      Strong:       	White=1     	---        Brilliant:      	White=1     	---} 1-0

[Event "French-ch U12-U14 2024"]
[Site "Agen"]
[Date "2024.04.14"]
[Round "1.9"]
[White "Bailla, Akrem"]
[Black "Nicot, Valentin"]
[Result "0-1"]
[ECO "B22"]
[WhiteElo "1620"]
[BlackElo "1989"]
[Annotator "NA RC"]
[PlyCount "114"]
[EventDate "2024.04.14"]
[EventType "swiss"]
[EventCountry "FRA"]
[SourceTitle "playchess.com"]
[Source "ChessBase"]
[SourceQuality "1"]
[TimeControl "5400+30"]

1. e4 {[%emt 0:00:02]} c5 {[%emt 0:00:11]} 2. c3 {[%emt 0:00:05]} Nf6 {[%emt 0:00:09]} 3. e5 {[%emt 0:00:17]} Nd5 {[%emt 0:00:09]} 4. d4 {[%emt 0:00:07]} cxd4 {[%emt 0:00:15]} 5. Qxd4 {[%emt 0:00:14]} e6 {[%emt 0:00:18]} 6. Nf3 {[%emt 0:00:16]} Nc6 {[%emt 0:00:24]} 7. Qe4 {[%emt 0:00:10]} f5 {[%emt 0:00:26]} 8. Qe2 {[%emt 0:00:34] The main line 8.Qe2 scores better than 8.exf6.} Be7 {[%emt 0:00:56]} 9. g3 {[%emt 0:00:29] B22: Sicilian: 2 c3.} O-O {[%emt 0:01:25]} 10. Bg2 {[%emt 0:00:32]} Qe8 {[%emt 0:03:08]} 11. O-O {[%emt 0:02:51]} Qh5 {[%emt 0:02:36]} 12. c4 {[%emt 0:06:21]} Nc7 {[%emt 0:04:01]} 13. a3 $146 {[%emt 0:07:43]} ({Predecessor:} 13. Nc3 Ne8 14. Re1 h6 15. h4 Rb8 16. Bf4 Bb4 17. Rac1 Ne7 18. a3 Bxc3 19. Rxc3 {1-0 Peterson,E (2242)-Rogos,J (2163) SVK-chT1E 0910 2009 (5.2)}) 13... a5 {[%emt 0:00:32]} 14. Rd1 {[%emt 0:03:08]} a4 {[%emt 0:02:21]} 15. Be3 {[%emt 0:02:17]} Na6 {[%emt 0:02:57]} 16. Nbd2 {[%emt 0:01:55]} Nxe5 {[%emt 0:02:30]} 17. Rac1 {[%emt 0:06:17]} Ng4 {[%emt 0:01:46]} 18. Nd4 {[%emt 0:03:55]} Qxh2+ {[%emt 0:00:18]} 19. Kf1 {[%emt 0:00:15]} Nxe3+ {[%emt 0:01:11]} 20. Qxe3 {[%emt 0:00:36]} f4 {[%emt 0:01:45]} 21. gxf4 {[%emt 0:01:18]} Qxf4 {[%emt 0:00:13]} 22. Qxf4 {[%emt 0:00:10]} Rxf4 {[%emt 0:00:07]} 23. Nb5 {[%emt 0:00:55]} Nc5 {[%emt 0:02:42]} 24. Rc3 {[%emt 0:02:18]} Bf6 {[%emt 0:00:49]} 25. Rc2 {[%emt 0:01:34]} g5 {[%emt 0:02:45]} 26. Nd6 {[%emt 0:02:16]} Rd4 {[%emt 0:01:20]} 27. N6e4 {[%emt 0:00:40]} Nxe4 {[%emt 0:00:14]} 28. Bxe4 {[%emt 0:00:13]} d5 {[%emt 0:00:20]} 29. cxd5 {[%emt 0:00:45]} exd5 {[%emt 0:00:03]} 30. Bg2 {[%emt 0:00:19]} Bd7 {[%emt 0:01:54]} 31. Re1 {[%emt 0:01:55]} Bf5 {[%emt 0:00:37]} 32. Rc5 {[%emt 0:01:06]} Rxd2 {[%emt 0:00:41]} 33. Bxd5+ {[%emt 0:00:13]} Kh8 {[%emt 0:00:51]} 34. Bxb7 {[%emt 0:01:04]} Bd3+ {[%emt 0:00:12]} 35. Kg1 {[%emt 0:00:31]} Bd4 {[%emt 0:00:29]} 36. Rxg5 {[%emt 0:02:18]} Bxf2+ {[%emt 0:00:11]} 37. Kh1 {[%emt 0:00:05]} Bxe1 {[%emt 0:00:32]} 38. Bxa8 {[%emt 0:00:08]} h6 {[%emt 0:00:16]} 39. Ra5 {[%emt 0:01:08]} Rh2+ {[%emt 0:00:22]} 40. Kxh2 {[%emt 0:00:18]} Bxa5 {[%emt 0:00:03]} 41. Bc6 {[%emt 0:00:20]} Bc2 {[%emt 0:00:05]} 42. Kg3 {[%emt 0:00:18]} Kg7 {[%emt 0:00:06]} 43. Kf4 {[%emt 0:00:13]} Kf6 {[%emt 0:00:02]} 44. Ke3 {[%emt 0:00:22]} h5 {[%emt 0:00:02]} 45. Kd4 {[%emt 0:00:17]} h4 {[%emt 0:00:06]} 46. Kc4 {[%emt 0:00:39]} Ke5 {[%emt 0:00:08]} 47. Kb5 {[%emt 0:00:32]} Bd2 {[%emt 0:00:13]} 48. Kc4 {[%emt 0:01:45]} h3 {[%emt 0:00:09]} 49. Kb5 {[%emt 0:00:15]} h2 {[%emt 0:00:05]} 50. Bb7 {[%emt 0:00:15]} Be4 {[%emt 0:00:05]} 51. Bxe4 {[%emt 0:00:17]} Kxe4 {[%emt 0:00:05]} 52. Kxa4 {[%emt 0:00:06]} h1=Q {[%emt 0:00:08]} 53. b4 {[%emt 0:00:19]} Kd5 {[%emt 0:00:08]} 54. Kb5 {[%emt 0:00:07]} Qf1+ {[%emt 0:00:06]} 55. Ka4 {[%emt 0:01:03]} Kc4 {[%emt 0:00:13]} 56. Ka5 {[%emt 0:00:31]} Qf6 {[%emt 0:00:14]} 57. Ka4 {[%emt 0:54:23]} Qa6# {[%emt 0:00:01]} 0-1

[Event "French-ch U12-U14 2024"]
[Site "Agen"]
[Date "2024.04.14"]
[Round "1.10"]
[White "Bocquenet-Drouode, Hugo"]
[Black "Frank, Timothee"]
[Result "1-0"]
[ECO "D00"]
[WhiteElo "1974"]
[BlackElo "1619"]
[Annotator "NA RC"]
[PlyCount "71"]
[EventDate "2024.04.14"]
[EventType "swiss"]
[EventCountry "FRA"]
[SourceTitle "playchess.com"]
[Source "ChessBase"]
[SourceQuality "1"]
[TimeControl "5400+30"]

1. d4 {[%emt 0:00:07]} Nf6 {[%emt 0:00:06]} 2. Nc3 {[%emt 0:00:05]} d5 {[%emt 0:00:05]} 3. Bf4 {[%emt 0:00:04]} e6 {[%emt 0:00:09]} 4. Nb5 {[%emt 0:00:05]} Na6 {[%emt 0:00:05]} 5. e3 {[%emt 0:00:07]} c6 {[%emt 0:00:06]} 6. Nc3 {[%emt 0:00:08]} Bb4 {[%emt 0:00:17]} 7. Bd3 {[%emt 0:00:56]} Nc7 {[%emt 0:00:23]} 8. Nf3 {[%emt 0:00:38]} Ne4 {[%emt 0:00:51]} 9. Bxe4 {[%emt 0:00:39]} dxe4 {[%emt 0:00:12]} 10. Nd2 {[%emt 0:00:40]} Bxc3 {[%emt 0:00:21]} 11. bxc3 {[%emt 0:00:08]} Nd5 {[%emt 0:00:23]} 12. Nxe4 {[%emt 0:00:37]} Qa5 {[%emt 0:00:41]} 13. O-O {[%emt 0:09:54]} Nxc3 {[%emt 0:01:06]} 14. Nxc3 {[%emt 0:00:05]} Qxc3 {[%emt 0:00:09]} 15. Qg4 {[%emt 0:00:11]} Rg8 {[%emt 0:03:28]} 16. Qe2 {[%emt 0:04:33]} Bd7 {[%emt 0:03:19]} 17. Rab1 {[%emt 0:00:18]} b5 {[%emt 0:01:56]} 18. Rb3 {[%emt 0:03:18]} Qa5 {[%emt 0:01:19]} 19. c4 {[%emt 0:00:21]} a6 {[%emt 0:00:38]} 20. Rfb1 {[%emt 0:02:12]} g6 {[%emt 0:01:24]} 21. Bd6 {[%emt 0:04:27]} Qd8 {[%emt 0:00:57]} 22. a4 {[%emt 0:00:43]} Bc8 {[%emt 0:00:28]} 23. c5 {[%emt 0:03:20]} Bb7 {[%emt 0:04:25]} 24. e4 {[%emt 0:04:46]} Qc8 {[%emt 0:02:07]} 25. Qg4 {[%emt 0:04:45]} h5 {[%emt 0:02:04]} 26. Qg5 {[%emt 0:04:08]} Qd8 {[%emt 0:01:02]} 27. Qe5 {[%emt 0:03:09]} Qd7 {[%emt 0:04:03]} 28. Rf3 {[%emt 0:08:05]} a5 {[%emt 0:07:29]} 29. d5 {[%emt 0:10:47]} cxd5 {[%emt 0:03:02]} 30. axb5 {[%emt 0:00:39]} dxe4 {[%emt 0:01:26]} 31. c6 {[%emt 0:00:29]} Bxc6 {[%emt 0:01:03]} 32. bxc6 {[%emt 0:00:05]} Qd8 {[%emt 0:00:39]} 33. Rfb3 {[%emt 0:00:28]} a4 {[%emt 0:01:56]} 34. Rb8 {[%emt 0:00:08]} a3 {[%emt 0:00:19]} 35. Rxd8+ {[%emt 0:00:18]} Rxd8 {[%emt 0:00:09]} 36. c7 {[%emt 0:00:11]} 1-0

[Event "French-ch U12-U14 2024"]
[Site "Agen"]
[Date "2024.04.14"]
[Round "1.12"]
[White "Prime, Inoue"]
[Black "Mence, Eline"]
[Result "1-0"]
[ECO "B15"]
[WhiteElo "1511"]
[BlackElo "1903"]
[Annotator "TA"]
[PlyCount "109"]
[EventDate "2024.04.14"]
[EventType "swiss"]
[EventCountry "FRA"]
[SourceTitle "playchess.com"]
[Source "ChessBase"]
[SourceQuality "1"]
[TimeControl "5400+30"]

{[%evp 14,109,46,46,26,40,39,24,24,11,28,10,13,17,65,32,88,93,103,106,163,109,122,77,283,283,354,316,465,343,350,258,242,177,150,100,92,60,122,145,136,0,0,0,208,198,207,110,110,100,160,151,116,118,175,176,177,177,158,91,338,371,408,378,387,341,411,214,406,406,372,305,171,171,180,180,817,635,634,490,5173,4490,29973,29974,29985,29986,29986,29987,29987,29988,29988,29989,29990,29990,29993,29994,29994,29995]} 1. e4 {[%emt 0:00:01]} c6 {[%emt 0:00:06]} 2. d4 {[%emt 0:00:05]} d5 {[%emt 0:00:12]} 3. Nc3 {[%emt 0:00:06]} dxe4 {[%emt 0:00:20]} 4. Nxe4 {[%emt 0:00:11]} Nf6 {[%emt 0:00:05]} 5. Nxf6+ {[%emt 0:00:10]} exf6 {[%emt 0:00:07]} 6. c3 {[%emt 0:00:21]} Bd6 {[%emt 0:00:07]} 7. Bd3 {[%emt 0:00:20]} O-O {[%emt 0:00:10]} 8. Qc2 {[%emt 0:00:24] Active counter play!} Re8+ {[%emt 0:00:08]} 9. Ne2 {[%emt 0:00:10][%cal Bg1e2,Be2g3,Bg3f5][%mdl 32]} h5 {[%emt 0:00:07]} 10. Be3 {[%emt 0:00:19]} Nd7 {[%emt 0:00:29] White has an edge.} 11. O-O-O {[%emt 0:01:04]} Nf8 {[%emt 0:00:17]} 12. Kb1 {[%emt 0:00:21]} Be6 {[%emt 0:02:27]} 13. c4 {[%emt 0:00:32]} Re7 {[%emt 0:07:26]} (13... g6 $11 {is more appropriate.}) 14. Ng3 {[%emt 0:06:23]} h4 {[%emt 0:06:32]} (14... g6 $14) 15. Nf5 $16 {[%emt 0:00:47]} Bxf5 {[%emt 0:00:22]} 16. Bxf5 {[%emt 0:00:09]} Qa5 {[%emt 0:07:21]} (16... g6 $16) 17. d5 {[%emt 0:05:39]} (17. c5 $18 Bb8 18. Qc4) 17... c5 {[%emt 0:00:57]} 18. g3 {[%emt 0:02:32]} g6 $2 {[%emt 0:26:00]} (18... b5 $16) 19. gxh4 $18 {[%emt 0:15:41]} Kh8 {[%emt 0:02:56]} (19... gxf5 $2 20. Rhg1+ Ng6 21. h5 $18) 20. Bd3 {[%emt 0:02:21]} Nd7 {[%emt 0:01:49]} (20... b5 $142 21. cxb5 Qd8) 21. Bd2 {[%emt 0:01:33]} Qc7 {[%emt 0:01:11]} 22. Bc3 {[%emt 0:02:04][%cal Oh4h5] [#] Repels Re5. aiming for h5!} Be5 {[%emt 0:05:31]} 23. Bxe5 {[%emt 0:00:39]} Qxe5 {[%emt 0:00:45]} 24. Qd2 {[%emt 0:03:16]} (24. f4 $142 Qxf4 25. h5) 24... Qh5 $16 {[%emt 0:03:19]} 25. Rhe1 {[%emt 0:04:52]} Rae8 {[%emt 0:00:49]} (25... Rxe1 $14 26. Rxe1 (26. Qxe1 Ne5 $11) 26... Kg7) 26. Rxe7 {[%emt 0:00:50]} Rxe7 {[%emt 0:00:05]} 27. Re1 {[%emt 0:03:00]} (27. d6 $16 Re8 28. Bc2) 27... Rxe1+ $11 {[%emt 0:01:19]} 28. Qxe1 {[%emt 0:00:07]} Qe5 $2 {[%emt 0:00:05]} (28... Qxh4 $2 {loses.} 29. Qe8+ Kg7 30. Qxd7 $18) (28... Ne5 $11 {and Black is okay.} 29. Qd2 Qg4 (29... Qxh4 30. f4 $11)) 29. Qxe5 $18 {[%emt 0:02:03]} fxe5 {[%emt 0:00:20][%mdl 4096] Endgame. KB-KN} 30. Kc2 {[%emt 0:00:58]} (30. h5 $18 f5 31. hxg6) 30... Kg7 $16 {[%emt 0:01:12]} 31. a3 {[%emt 0:00:22]} Kf6 {[%emt 0:01:41]} ({Black should play} 31... f5) 32. b4 {[%emt 0:01:12]} Ke7 {[%emt 0:00:28]} 33. Be2 {[%emt 0:00:40]} b6 {[%emt 0:12:48]} (33... cxb4 $16 {was called for.} 34. axb4 Nf6) 34. h5 $18 {[%emt 0:00:10]} gxh5 {[%emt 0:00:17]} 35. Bxh5 {[%emt 0:00:11]} Nf6 {[%emt 0:00:16] [#]} 36. Be2 {[%emt 0:00:41]} (36. Bf3 $142 $1) 36... Kd6 $2 {[%emt 0:00:50]} (36... Ne4 $16) 37. Kb3 {[%emt 0:00:31]} a6 {[%emt 0:02:32]} 38. h4 {[%emt 0:00:23]} Ng8 {[%emt 0:01:29]} 39. Ka4 {[%emt 0:01:49]} Nh6 {[%emt 0:00:36]} 40. Bh5 {[%emt 0:02:28]} (40. Bd3 $142) 40... Nf5 $2 {[%emt 0:01:18]} (40... e4 {was worth a try.} 41. Be2 Ng8) 41. Bxf7 {[%emt 0:01:07]} Nxh4 {[%emt 0:00:06]} 42. Be6 {[%emt 0:00:46]} Nf3 {[%emt 0:13:35]} 43. Bc8 {[%emt 0:00:40]} Nd2 {[%emt 0:00:50]} 44. Bxa6 {[%emt 0:00:27] Black must now prevent Kb5.} Ne4 $2 {[%emt 0:00:14]} (44... Nb1 45. bxc5+ Kxc5) 45. Kb5 {[%emt 0:02:32]} Kc7 {[%emt 0:00:43][%cal Re4c3]} 46. bxc5 {[%emt 0:02:12]} bxc5 {[%emt 0:02:25]} (46... Nxc5 $142 47. a4 Ne4) 47. f3 {[%emt 0:01:07]} Ng5 {[%emt 0:00:34]} 48. Kxc5 {[%emt 0:00:40] White mates.} Nxf3 {[%emt 0:00:09]} 49. d6+ {[%emt 0:00:42]} Kd8 {[%emt 0:00:22]} 50. Kd5 {[%emt 0:00:18]} Kd7 {[%emt 0:00:28]} 51. Bb5+ {[%emt 0:00:18]} Kd8 {[%emt 0:00:13]} 52. a4 {[%emt 0:00:09][%cal Ba3a4,Ba4a5,Ba5a6][%mdl 32]} Kc8 {[%emt 0:01:17]} 53. a5 {[%emt 0:00:16]} Kb7 {[%emt 0:00:35]} 54. a6+ {[%emt 0:00:17]} Kb6 {[%emt 0:00:16]} 55. d7 {[%emt 0:00:21] Weighted Error Value: White=0.27 (precise) /Black=0.62.  Loses game:     	---       	Black=3      Mistake:       	White=6     	Black=9      Inaccurate:     	White=3     	Black=1      OK:         	White=10    	Black=14     Best:        	White=6     	Black=2} 1-0

[Event "French-ch U12-U14 2024"]
[Site "Agen"]
[Date "2024.04.14"]
[Round "1.13"]
[White "Verdier, Anais"]
[Black "Oger, Eryn"]
[Result "1-0"]
[ECO "D55"]
[WhiteElo "1776"]
[BlackElo "1507"]
[Annotator "NA RC"]
[PlyCount "67"]
[EventDate "2024.04.14"]
[EventType "swiss"]
[EventCountry "FRA"]
[SourceTitle "playchess.com"]
[Source "ChessBase"]
[SourceQuality "1"]
[TimeControl "5400+30"]

1. d4 {[%emt 0:00:03]} d5 {[%emt 0:00:19]} 2. Nf3 {[%emt 0:00:14]} Nf6 {[%emt 0:01:12]} 3. c4 {[%emt 0:00:27]} e6 {[%emt 0:00:11]} 4. Nc3 {[%emt 0:00:45]} Be7 {[%emt 0:00:54]} 5. Bg5 {[%emt 0:02:09]} O-O {[%emt 0:00:23]} 6. e3 {[%emt 0:01:18]} a6 {[%emt 0:00:23]} 7. a4 {[%emt 0:02:37]} c6 {[%emt 0:04:57]} 8. Bd3 {[%emt 0:05:44]} dxc4 {[%emt 0:04:08]} 9. Bxc4 {[%emt 0:00:07]} b5 {[%emt 0:00:33]} 10. axb5 {[%emt 0:02:08]} cxb5 {[%emt 0:00:21]} 11. Bxb5 {[%emt 0:04:47]} Qb6 {[%emt 0:11:17]} 12. Qc2 {[%emt 0:10:00]} Bb7 {[%emt 0:14:47]} 13. Be2 {[%emt 0:07:50]} Nbd7 {[%emt 0:02:33]} 14. O-O {[%emt 0:04:05]} Rfd8 {[%emt 0:01:59]} 15. Na4 {[%emt 0:05:57]} Rac8 {[%emt 0:06:33]} 16. Qxc8 {[%emt 0:06:46]} Rxc8 {[%emt 0:02:59]} 17. Nxb6 {[%emt 0:00:09]} Nxb6 {[%emt 0:02:13]} 18. Bxa6 {[%emt 0:02:07]} Bxa6 {[%emt 0:02:16]} 19. Rxa6 {[%emt 0:00:06]} Nbd5 {[%emt 0:02:43]} 20. Ra7 {[%emt 0:04:16]} Bd6 {[%emt 0:04:01]} 21. Rfa1 {[%emt 0:02:58]} h6 {[%emt 0:06:30]} 22. Bxf6 {[%emt 0:04:59]} Nxf6 {[%emt 0:00:41]} 23. Ra8 {[%emt 0:01:33]} Bb8 {[%emt 0:01:36]} 24. Ne5 {[%emt 0:01:46]} h5 {[%emt 0:10:43]} 25. g3 {[%emt 0:03:03]} g6 {[%emt 0:01:31]} 26. R1a7 {[%emt 0:02:53]} Kg7 {[%emt 0:04:44]} 27. Rxf7+ {[%emt 0:02:06]} Kh6 {[%emt 0:01:14]} 28. Rxf6 {[%emt 0:02:52]} Rc1+ {[%emt 0:02:53]} 29. Kg2 {[%emt 0:00:11]} Bd6 {[%emt 0:00:10]} 30. Rxg6+ {[%emt 0:01:08]} Kh7 {[%emt 0:00:23]} 31. Ra7+ {[%emt 0:00:53]} Kh8 {[%emt 0:00:08]} 32. Rxe6 {[%emt 0:02:24]} Kg8 {[%emt 0:00:49]} 33. Re8+ {[%emt 0:00:26]} Bf8 {[%emt 0:00:09]} 34. Ng6 {[%emt 0:18:43]} 1-0

[Event "French-ch U12-U14 2024"]
[Site "Agen"]
[Date "2024.04.14"]
[Round "1.14"]
[White "Lux, Oceane"]
[Black "Tymchenko, Maria"]
[Result "0-1"]
[ECO "A22"]
[WhiteElo "1503"]
[BlackElo "1767"]
[Annotator "NA RC"]
[PlyCount "86"]
[EventDate "2024.04.14"]
[EventType "swiss"]
[EventCountry "FRA"]
[SourceTitle "playchess.com"]
[Source "ChessBase"]
[SourceQuality "1"]
[TimeControl "5400+30"]

1. c4 {[%emt 0:00:02]} Nf6 {[%emt 0:00:05]} 2. g3 {[%emt 0:00:34]} d6 {[%emt 0:00:24]} 3. Bg2 {[%emt 0:00:30]} Nbd7 {[%emt 0:00:22]} 4. Nc3 {[%emt 0:00:46]} e5 {[%emt 0:00:21]} 5. d3 {[%emt 0:00:33]} Be7 {[%emt 0:00:22]} 6. e4 {[%emt 0:00:26]} O-O {[%emt 0:02:06]} 7. Nge2 {[%emt 0:00:47]} c6 {[%emt 0:01:37]} 8. O-O {[%emt 0:00:53]} a6 {[%emt 0:02:33]} 9. h3 {[%emt 0:03:38]} b5 {[%emt 0:02:53]} 10. b3 {[%emt 0:00:55]} Nb6 {[%emt 0:06:27]} 11. Be3 {[%emt 0:02:15]} Be6 {[%emt 0:12:20]} 12. f4 {[%emt 0:05:51]} b4 {[%emt 0:08:16]} 13. f5 {[%emt 0:01:24]} Bc8 {[%emt 0:00:59]} 14. Nb1 {[%emt 0:00:59]} d5 {[%emt 0:02:21]} 15. Kh2 {[%emt 0:03:41]} Bb7 {[%emt 0:05:00]} 16. g4 {[%emt 0:02:10]} dxe4 {[%emt 0:03:27]} 17. dxe4 {[%emt 0:00:18]} c5 {[%emt 0:00:54]} 18. Ng3 {[%emt 0:02:08]} Qxd1 {[%emt 0:01:49]} 19. Rxd1 {[%emt 0:00:12]} Rad8 {[%emt 0:00:37]} 20. Nd2 {[%emt 0:01:29]} Rd3 {[%emt 0:02:14]} 21. Bf2 {[%emt 0:07:07]} Rfd8 {[%emt 0:01:25]} 22. Be1 {[%emt 0:01:18]} Ne8 {[%emt 0:03:02]} 23. Bf1 {[%emt 0:02:10]} R3d4 {[%emt 0:02:39]} 24. Be2 {[%emt 0:00:52]} Nf6 {[%emt 0:03:32]} 25. Bf3 {[%emt 0:02:16]} Nc8 {[%emt 0:05:17]} 26. g5 {[%emt 0:01:26]} Ne8 {[%emt 0:02:02]} 27. h4 {[%emt 0:05:15]} h6 {[%emt 0:06:27]} 28. g6 {[%emt 0:02:47]} fxg6 {[%emt 0:01:41]} 29. fxg6 {[%emt 0:00:09]} Bxh4 {[%emt 0:01:35]} 30. Nf5 {[%emt 0:04:08]} Bxe1 {[%emt 0:00:55]} 31. Nxd4 {[%emt 0:00:28]} Rxd4 {[%emt 0:00:18]} 32. Rxe1 {[%emt 0:00:29]} Rxd2+ {[%emt 0:00:05]} 33. Re2 {[%emt 0:00:14]} Rxe2+ {[%emt 0:01:39]} 34. Bxe2 {[%emt 0:00:10]} Bxe4 {[%emt 0:00:08]} 35. Bh5 {[%emt 0:03:35]} Kf8 {[%emt 0:02:25]} 36. a3 {[%emt 0:03:38]} Bc2 {[%emt 0:04:21]} 37. axb4 {[%emt 0:01:27]} Bxb3 {[%emt 0:00:44]} 38. bxc5 {[%emt 0:03:37]} Bxc4 {[%emt 0:00:34]} 39. Re1 {[%emt 0:00:16]} Nf6 {[%emt 0:01:07]} 40. Bd1 {[%emt 0:00:42]} e4 {[%emt 0:00:55]} 41. Kg3 {[%emt 0:03:43]} Ke7 {[%emt 0:01:26]} 42. Ba4 {[%emt 0:00:41]} Ke6 {[%emt 0:01:34]} 43. Bc2 {[%emt 0:04:01]} Kd5 {[%emt 0:02:48]} 0-1